Cogmind - Beta 14 *** ADVENTURER MODE // 2025.03.25 @ 21:47:40 Player: nacho Result: Self-destructed Performance ------------- Evolutions (1) 500 Regions Visited (2) 400 Robots Destroyed (31) 155 Value Destroyed (577) 577 Prototype IDs (5) 100 Alien Tech Used (0) 0 Bonus (0) 0 TOTAL SCORE: 1732 Bonus ------- None Cogmind --------- Core Integrity 222/400 Matter 277/300 Energy 81/100 System Corruption 0% Temperature Cool (66) Movement Hovering (60) Location -9/Materials Parts ------- > --- POWER (2) -------- (None) > --- PROPULSION (3) --- Improved Hover Unit > --- UTILITY (2) ------ (None) > --- WEAPON (2) ------- Spread Laser Light Assault Rifle > --- INVENTORY (5) ---- (None) Peak State ------------ > --- POWER ------------ Ion Engine > --- PROPULSION ------- Wheel Compact Wheel > --- UTILITY ---------- Improved Terrain Scanner Improved Terrain Scanner > --- WEAPON ----------- Medium Laser Medium Laser > --- INVENTORY -------- Ion Engine Light Ion Engine Wheel [Rating: 11] Favorites ----------- Power Ion Engine Engine Ion Engine Propulsion Improved Hover Unit Leg Aluminum Leg Wheel Wheel Hover Unit Improved Hover Unit Flight Unit Flight Unit Utility Improved Terrain Scanner Device Improved Terrain Scanner Storage Small Storage Unit Weapon Medium Laser Energy Gun Medium Laser Energy Cannon Beam Cannon Ballistic Gun Light Assault Rifle Build | -11 -10 -9 ------- Run | Yrd Mat Mat Slots Evolved 2 | . . 2 Power 1 | . . 1 Propulsion 1 | . . 1 Utility . | . . . Weapon . | . . . Parts Attached 39 | 8 16 15 Power 7 | 1 2 4 Engine 7 | 1 2 4 Core . | . . . Reactor . | . . . Propulsion 12 | 2 6 4 Treads . | . . . Leg 2 | . 2 . Wheel 3 | 2 1 . Hover 2 | . . 2 Flight 5 | . 3 2 Utility 6 | 3 1 2 Device 5 | 2 1 2 Storage 1 | 1 . . Processor . | . . . Hackware . | . . . Protection . | . . . Artifact . | . . . Weapon 14 | 2 7 5 Energy Gun 11 | 2 6 3 Energy Cannon 1 | . 1 . Ballistic Gun 2 | . . 2 Ballistic Cannon . | . . . Launcher . | . . . Special Weapon . | . . . Impact Weapon . | . . . Slashing Weapon . | . . . Piercing Weapon . | . . . Special Melee Weapon . | . . . Unidentified Prototypes . | . . . Parts Lost 16 | . 5 11 Power 4 | . 1 3 Propulsion 6 | . 3 3 Utility 3 | . . 3 Weapon 3 | . 1 2 Highest Loss Streak 7 | . 3 7 To Critical Strikes . | . . . Average Slot Usage (%) 85 | . 95 76 Engine 16 | . 12 20 Leg 2 | . 4 . Wheel 7 | . 15 . Hover 5 | . . 11 Flight 5 | . 5 5 Device 23 | . 28 18 Energy Gun 19 | . 24 13 Ballistic Gun 2 | . . 5 Peak Build Rating 11 | 11 11 11 Average Rating 9 | 7 9 9 On Entrance 6 | . 11 7 Naked Turns . | . . . Heaviest Build 16 | 15 12 16 Greatest Support 26 | 26 26 13 Greatest Overweight (x) 3 | . 1 3 Average Overweight (x) . | . . 1 Largest Inventory Capacity 8 | 8 5 5 Average Capacity 5 | 5 5 5 Most Carried 5 | 4 5 4 Average Carried 3 | 2 4 1 Final Capacity 5 | 5 5 5 Final Carried 3 | 3 3 . Class Distribution -------------------- 61% | Scavenger-Mutant 38% | Mutant Dominant Class ---------------- Mutant | -10/Materials Scavenger-Mutant | -9/Materials Resources | -11 -10 -9 ----------- Run | Yrd Mat Mat Matter Collected 540 | 280 152 108 Remotely . | . . . Salvage Created 979 | 207 535 237 Parts 60 | 9 31 20 Haulers Intercepted . | . . . Recyclers Shooed 3 | . . 3 Parts Field Recycled . | . . . Retrieved Matter . | . . . Parts Self-Destructed . | . . . Prevented . | . . . Kills | -11 -10 -9 ------- Run | Yrd Mat Mat Combat Hostiles Destroyed 17 | . 9 8 Guns 16 | . 8 8 Cannons 1 | . 1 . Classes Destroyed 8 | 3 3 2 Worker 3 | 2 1 . Builder 1 | . 1 . Tunneler 6 | 5 1 . Recycler 3 | 1 2 . Watcher 1 | . . 1 Swarmer 6 | . 3 3 Grunt 8 | . 6 2 Sentry 3 | . . 3 Best Kill Streak 6 | 6 4 3 Combat Bots Only 4 | . 4 3 Max Kills in Single Turn 2 | 1 2 1 Gunslinging 1 | . 1 . Exploded . | . . . Melee . | . . . Uniques/NPCs Destroyed . | . . . Combat | -11 -10 -9 -------- Run | Yrd Mat Mat Hostile Shots Fired 249 | . 113 136 Missed 88 | . 33 55 Damage Taken 1363 | . 685 678 Core 340 | . 162 178 Absorbed by Shields . | . . . Ignored by Resistances 431 | . 214 217 Regen/Repaired (Parts) 19 | . 19 . Core Remaining (%) 67 | 100 35 . Volleys Fired 86 | 15 41 30 Largest 2 | 2 2 2 Hottest 115 | 100 100 115 Shots Fired 160 | 30 82 48 Gun 150 | 30 72 48 Cannon 10 | . 10 . Launcher . | . . . Special . | . . . Kinetic 17 | . . 17 Thermal 133 | 30 72 31 Explosive . | . . . Electromagnetic 10 | . 10 . Robot Hit Streak 19 | 19 14 13 Robot Miss Streak 4 | 1 3 4 Penetration Max . | . . . Secondary Targets 1 | . 1 . Max Gunslinging Chain 1 | . 1 . Shots Hit Robots 125 | 22 63 40 Core Hits 74 | 9 24 41 Critical Kills . | . . . Critical Parts Destroyed . | . . . Critical Strikes 12 | 8 4 . Burn 12 | 8 4 . Melee Attacks . | . . . Impact . | . . . Slashing . | . . . Piercing . | . . . Sneak Attacks . | . . . Combat Hostiles . | . . . Follow-up Attacks . | . . . Damage Inflicted 1633 | 278 817 538 Guns 1540 | 278 724 538 Cannons 87 | . 87 . Explosions . | . . . Melee . | . . . Ramming 6 | . 6 . Kinetic 88 | . . 88 Thermal 1399 | 278 671 450 Explosive . | . . . Electromagnetic 140 | . 140 . Impact . | . . . Slashing . | . . . Piercing . | . . . Highest Corruption . | . . . Average Corruption . | . . . Corruption Purged . | . . . Corruption Blocked . | . . . Overload Shots . | . . . Overflow Damage . | . . . Projectiles . | . . . Explosions . | . . . Melee . | . . . Knockbacks . | . . . Impact . | . . . Kinetic . | . . . Secondary . | . . . Self-Inflicted Damage . | . . . Shots . | . . . Rammed . | . . . Targets Rammed 4 | . 4 . Kicked 4 | . 4 . Crushed . | . . . Highest Temperature 424 | 212 424 230 Average Temperature 142 | 89 205 63 Received Heat Transfer 837 | . 483 354 Effects 5 | . 5 . Shutdowns 3 | . 3 . Interference 1 | . 1 . Matter Decay 1 | . 1 . Siege Activations . | . . . Robots Corrupted . | . . . Combat Hostiles . | . . . Parts Fried 1 | . 1 . Impact Corruptions . | . . . Robots Melted . | . . . Combat Hostiles . | . . . Parts Melted 13 | 10 3 . Heat Transferred 4128 | 1406 2172 550 Parts Sabotaged . | . . . Parts Stolen . | . . . Parts Stripped . | . . . Power Chain Reactions . | . . . Alert | -11 -10 -9 ------- Run | Yrd Mat Mat Peak Influence 310 | 40 310 251 Initial 25 | . 22 25 Average 90 | 16 112 87 Maximum Alert Level 1 | . 1 1 Low Security (%) 80 | 100 75 81 Level 1 19 | . 24 18 Level 2 . | . . . Level 3 . | . . . Level 4 . | . . . Level 5 . | . . . High Security . | . . . Max Security . | . . . Squads Dispatched 5 | . 2 3 Investigation 3 | . 2 1 Extermination . | . . . Reinforcement 2 | . . 2 Assault . | . . . Garrison . | . . . Intercept . | . . . Searches Triggered . | . . . Construction Impeded . | . . . Haulers Reinforced . | . . . Active Scanning Responses . | . . . Cargo Convoy Interrupts . | . . . Stealth | -11 -10 -9 --------- Run | Yrd Mat Mat Distress Signals 2 | . . 2 Communications Jammed . | . . . Distress Signals . | . . . Times Spotted 49 | . 22 27 Peak Tracking Total 16 | . 6 16 Tactical Retreats 3 | . 1 2 Traps | -11 -10 -9 ------- Run | Yrd Mat Mat Traps Triggered . | . . . Indirectly . | . . . Trap Hack Attempts . | . . . Triggered . | . . . Disarmed . | . . . Reprogrammed . | . . . Reused . | . . . Traps Extracted . | . . . Installed . | . . . Triggered . | . . . Machines | -11 -10 -9 ---------- Run | Yrd Mat Mat Machines Disabled . | . . . Max in Single Turn . | . . . Machines Repaired . | . . . Machines Dismantled . | . . . Machines Sabotaged . | . . . Overloaded Fab Kills . | . . . Hacking | -11 -10 -9 --------- Run | Yrd Mat Mat Machines Accessed 9 | . 6 3 Terminals 6 | . 4 2 Fabricators . | . . . Repair Stations 1 | . 1 . Recycling Units 2 | . 1 1 Scanalyzers . | . . . Garrison Access . | . . . Total Hacks 25 | . 18 7 Successful 18 | . 13 5 Failed 7 | . 5 2 Catastrophic . | . . . Database Lockouts . | . . . Manual . | . . . Terminals 17 | . 12 5 Fabricators . | . . . Repair Stations 3 | . 3 . Recycling Units 5 | . 3 2 Scanalyzers . | . . . Garrison Access . | . . . Terminal Hacks 13 | . 8 5 Record 8 | . 6 2 Prototype ID Bank 3 | . 1 2 Hauler Manifests 1 | . 1 . Registered Components 1 | . . 1 Fabricator Hacks . | . . . Repair Station Hacks 3 | . 3 . Scan Component 2 | . 2 . Repair 1 | . 1 . Recycling Unit Hacks 2 | . 2 . Retrieve Components 2 | . 2 . Scanalyzer . | . . . Garrison Access Hacks . | . . . Unauthorized Hacks . | . . . Terminals . | . . . Fabricators . | . . . Repair Stations . | . . . Recycling Units . | . . . Scanalyzers . | . . . Garrison Access . | . . . Data Cores Recovered . | . . . Used . | . . . Hacking Detections 7 | . 5 2 Full Trace Events 4 | . 3 1 Feedback Events . | . . . Feedback Blocked . | . . . Robot Schematics Acquired . | . . . Robots Built . | . . . Authchips . | . . . Time . | . . . Total Robot Build Rating . | . . . Part Schematics Acquired . | . . . Parts Built . | . . . Authchips . | . . . Time . | . . . Total Part Build Rating . | . . . Parts Repaired 1 | . 1 . Time 26 | . 26 . Parts Recycled . | . . . Recycled Matter . | . . . Retrieved Matter . | . . . Retrieved Components 7 | . 7 . Parts Scanalyzed . | . . . Part Schematics Acquired . | . . . Parts Damaged . | . . . Bothacking | -11 -10 -9 ------------ Run | Yrd Mat Mat Used RIF Installer . | . . . Robots Hacked . | . . . Non-combat . | . . . Combat . | . . . Robot Hacks Applied . | . . . Relay Couplers Released . | . . . Fabnet Peak Effective % . | . . . Robots Rewired . | . . . Allies Hacked . | . . . Hacks Repelled . | . . . Allies | -11 -10 -9 -------- Run | Yrd Mat Mat Total Allies . | . . . Largest Group . | . . . Highest-Rated Group . | . . . Highest-Rated Ally . | . . . Total Orders . | . . . Ally Attacks . | . . . Total Damage . | . . . Kills . | . . . Allies Corrupted . | . . . Allies Melted . | . . . Intel | -11 -10 -9 ------- Run | Yrd Mat Mat Robot Analysis Total . | . . . Derelict Logs Recovered . | . . . Drone Launches . | . . . Drone Recoveries . | . . . Exploration | -11 -10 -9 ------------- Run | Yrd Mat Mat Turns Passed 1154 | 130 511 513 Spaces Moved 728 | 76 343 309 Core 11 | 7 4 . Treads . | . . . Legs 78 | . 66 12 Wheels 295 | 69 226 . Hover 261 | . . 261 Flight 83 | . 47 36 Fastest Speed 50 | 50 90 56 Average Speed 110 | 86 99 128 Slowest Speed 280 | 90 120 280 Overloaded Moves . | . . . Propulsion Burnouts . | . . . Robots Hopped . | . . . Cave-ins Triggered . | . . . Exploration Rate (%) 33 | 3 61 35 Regions Visited 2 Branch Regions . Pre-discovered Areas . | . . . Known Exits Taken . | . . . Unknown Exits Taken 2 | 1 1 . Scrap Searched . | . . . Spaces Dug . | . . . Terrain Destroyed . | . . . Melee . | . . . Projectile . | . . . AOE . | . . . Terrain Rammed . | . . . Walls Destroyed . | . . . Machines Disabled . | . . . Actions | -11 -10 -9 --------- Run | Yrd Mat Mat Total 922 | 110 430 382 Wait 13 | . 9 4 Move 726 | 75 342 309 Hop . | . . . Pick Up 35 | 11 9 15 Fast Attach 3 | . 3 . Attach 26 | 8 7 11 Detach . | . . . Swap 10 | . 6 4 Drop 19 | 1 9 9 Fire 86 | 15 41 30 Melee . | . . . Ram . | . . . Kick 4 | . 4 . Crush . | . . . Escape Stasis . | . . . Rewire . | . . . Trap . | . . . Miscellaneous . | . . . Route ------- -11/Scrapyard -10/Materials (discovered 2 exits: *Mat / [*Min]) -9/Materials History --------- Turn | Location | Event 56 | -11/Scrapyard | Discovered new exit (range 12) 131 | -11/Scrapyard | Entered Materials 311 | -10/Materials | Build established: Mutant 373 | -10/Materials | Discovered new exit (range 11) 527 | -10/Materials | Repaired Flight Unit 568 | -10/Materials | Lost 3 parts (1p2n) 589 | -10/Materials | Core integrity fell below 50% 623 | -10/Materials | Discovered new exit (range 16) 642 | -10/Materials | Entered another Materials area 642 | -9/Materials | Evolved 2 slots: Power x1, Propulsion x1 944 | -9/Materials | Build established: Scavenger-Mutant 1155 | -9/Materials | Self-destructed Last Messages --------------- Aerolev Unit 01074_ ALERT: Suspicious activity at Terminal M001. Dispatching Investigation squad. 01076_ K-01 Serf collects debris. 01082_ Lgt. Ion Engine destroyed. 01098_ Spread Laser destroyed. 01099_ Lgt. Ion Engine destroyed. 01101_ K-01 Serf cleans the Terminal. 01111_ Acquired Hover Unit. 01116_ Dropped Lgt. Assault Rifle. 01119_ Sensor Array destroyed. 01120_ Connecting with Scanalyzer... 01128_ Heat Sink destroyed. 01128_ C-30 ARC bursts open, deploying its payload. 01128_ S-10 Pest unfolds itself. 01134_ Acquired Spread Laser. 01136_ Dropped Beam Rifle. 01145_ Imp. Ion Engine destroyed. 01147_ Hover Unit destroyed. Map ----- +----------------------------------------------------+ | ##### #???? ??????????????????????????????????? | | #???? ??????????????????????????????????? | | ##### #???# ??????????????????????????????????? | | ????## ##????#???????????????????????????????????? | | ?????# #?????????????????????????????????????????? | | ?????# #?????????????????????????????????????????? | | ?????# #?????????????????????????????????????????? | | ?????# #?????????????????????????????????????????? | | ?????# #?????????????????????????????????????????? | | ?????# #?????????????????????????????????????????? | | ?????# #????/????????????????????????????????????? | | ?? ?? ???????????? ??????????????????????????? | | ?? ?? #??????????# #?????????????????????????? | | ?? ?# #??????????# # ????????????????????????? | | ??[ ?# #??????????# ???????????????????????? | | ?? ## #####??????# ????????????????????????? | | ?? ## +??????#a ?????????????????????????? | | ###+## #???????# #?????????????????????????? | | #???????# #??????????""?????????????? | | " #???????+ #????????? ""?????????????? | | "%" #???????# ######### """ ??????????? | | " ######### a g ?????????? | | k ?????????? | | s w #????????? | | s g #????????? | | s @ w #????????? | | r s g #????????? | | """ """ #######g################ #????????? | | """ """ #????? ???????????????????????????? | | """ """ [ #### """???????????????????????????? | | + """ ??????????????????????????? | | #####? """ ??????????????????????????? | | ######+###/##???? ?????????????????????????? | | ?# ^ #????? """ ?????????????????????????? | | ?# "" #????# """ ????????????????????????? | | ?# T" #????# ????? ????????????????????????? | | ?# """ "" #????# ????? #???????????????????????? | | ?# """ #????????????##???????????????????????? | | ## """ #?????????????????????????????????????? | | # [ [#?????????????????????????????????????? | | ## #?????????????????????????????????????? | | ?## ""######?????????????????????????????????????? | | ??#S""#??????????????????????????????????????????? | | ??#"" #??????????????????????????????????????????? | | ??#####??????????????????????????????????????????? | | ?????????????????????????????????????????????????? | | ?????????????????????????????????????????????????? | | ?????????????????????????????????????????????????? | | ?????????????????????????????????????????????????? | | ?????????????????????????????????????????????????? | +----------------------------------------------------+ Best States ------------- Heat Dissipation 38 Energy Generation 17 Energy Capacity 290 Matter Stores 300 Matter Capacity 300 Sight Range 16 Robot Scan Range 14 Terrain Scan Range 16 Terrain Scan Density 10 Resistance: KI 20 Resistance: TH 20 Resistance: EX 20 Resistance: EM 20 Resistance: I 20 Resistance: S 20 Resistance: P 20 Evasion (%) 55 Offensive Hacking 10 Item Schematics ----------------- None Robot Schematics ------------------ None Fabricated ------------ Nothing Alien Tech Used ----------------- None Achievements -------------- None Challenges ------------ None Game ------ Seed PointMissileInverter Manual? 0 Play Time 00:17:10 Cumulative 41.4 hours Start 2025.03.25 @ 21:32:53 End 2025.03.25 @ 21:47:40 Sessions 1 Manual Loads 0 Difficulty Adventurer Special Mode None Game No. 28 Rogue 1 Adventurer 26 Explorer 1 Win Type - Total 0 Types 0/0/0/0/0/0/0/0/0 Lore% 10 Gallery% 26 Achievement% 22 Wizard Run 0 Options --------- Layout 1 ASCII 0 Keyboard 0 Movement Mouse Keybinds 0 Fullscreen 2 Font 24/Smallcaps Map View 50x35 Zoom Use 0% Tactical HUD 1 Map Filters NONE Filters NONE Steam 1 RUN: 0ce55ae2-9123-474f-8a7c-b88d06feb248